[Event "SixDays Budapest March IM C 2025"]
[Site "Budapest"]
[Date "2025.03.26"]
[Round "4.1"]
[White "Nemeth, Zoltan"]
[Black "Sanjay Narayanan P S"]
[Result "1/2-1/2"]
[Annotator "TA"]
[ECO "D32"]
[WhiteElo "2188"]
[BlackElo "2169"]
[PlyCount "44"]
[EventDate "2025.03.23"]
[EventCountry "HUN"]
[SourceTitle "playchess.com"]
[Source "ChessBase"]
[SourceQuality "1"]
[TimeControl "5400+30"]

{[%evp 19,44,61,69,79,77,85,81,65,78,81,89,33,49,36,37,50,66,52,74,41,44,0,0,0,0,0,6]} 1. d4 {[%emt 0:00:03]} d5 {[%emt 0:10:12]} 2. c4 {[%emt 0:00:26]} e6 {[%emt 0:00:11]} 3. Nc3 {[%emt 0:00:38]} c5 {[%emt 0:00:11]} 4. cxd5 {[%emt 0:01:34]} exd5 {[%emt 0:00:02]} 5. Nf3 {[%emt 0:00:13]} Nf6 {[%emt 0:00:17]} 6. Bg5 {[%emt 0:00:17]} Be7 {[%emt 0:01:01]} 7. dxc5 {[%emt 0:02:58]} Be6 {[%emt 0:00:13]} 8. e3 {[%emt 0:01:39]} Nc6 {[%emt 0:00:55]} 9. Bb5 {[%emt 0:00:19]} O-O {[%emt 0:11:39]} 10. O-O {[%emt 0:00:09]} Bxc5 {[%emt 0:04:03]} 11. Bxf6 {[%emt 0:00:17] D32: Tarrasch Defence: Sidelines and lines without g3.} Qxf6 {[%emt 0:14:59]} 12. Nxd5 {[%emt 0:00:10]} Qxb2 {[%emt 0:01:14] [#] White must now prevent ...Bxd5.} 13. Nc7 {[%emt 0:00:07] White is better. Excellent horsemanship.} Rac8 {[%emt 0:06:52]} 14. Nxe6 {[%emt 0:00:44]} fxe6 {[%emt 0:00:41]} 15. Bxc6 $146 {[%emt 0:01:57]} (15. Qb3 $16 Qxb3 16. axb3) ({Predecessor:} 15. Bc4 Qf6 16. Qd7 Rfe8 17. Rac1 b6 18. Ba6 Red8 19. Bxc8 Rxd7 20. Bxd7 Ne5 21. Nxe5 Qxe5 {1-0 Klauner,T (2439)-Burne,N (2468) olm21 final email 2020 [5]}) 15... Rxc6 $14 {[%emt 0:03:02]} 16. Rb1 {[%emt 0:03:27]} Qxa2 {[%emt 0:03:28]} 17. Rxb7 {[%emt 0:00:05]} Rd6 {[%emt 0:01:54]} 18. Qc1 {[%emt 0:04:49]} Qd5 {[%emt 0:05:05]} 19. Rb5 {[%emt 0:01:41]} Rc6 {[%emt 0:01:22][%cal Bd6c6,Bc6c1,Bc1f1][%mdl 32]} 20. Nd4 {[%emt 0:11:17]} Bxd4 {[%emt 0:03:19] The position is equal.} 21. Rxd5 {[%emt 0:00:07]} Rxc1 {[%emt 0:00:07]} 22. Rxd4 {[%emt 0:00:11]} Rxf1+ {[%emt 0:02:30] Weighted Error Value: White=0.15 (very precise) /Black=0.05 (flawless)   Mistake:       	White=1     	---        Inaccurate:     	White=2     	---        OK:         	White=6     	Black=7      Best:        	White=2     	---} 1/2-1/2

[Event "SixDays Budapest March IM C 2025"]
[Site "Budapest"]
[Date "2025.03.26"]
[Round "4.2"]
[White "Lau, Lut Yin Luke"]
[Black "Steiners, Emils"]
[Result "1-0"]
[Annotator "NA"]
[ECO "B22"]
[WhiteElo "2240"]
[BlackElo "2165"]
[PlyCount "95"]
[EventDate "2025.03.23"]
[EventCountry "HUN"]
[SourceTitle "playchess.com"]
[Source "ChessBase"]
[SourceQuality "1"]
[TimeControl "5400+30"]

1. e4 {[%emt 0:01:38]} c5 {[%emt 0:00:06]} 2. c3 {[%emt 0:00:33]} Nf6 {[%emt 0:00:06]} 3. e5 {[%emt 0:00:12]} Nd5 {[%emt 0:00:05]} 4. Nf3 {[%emt 0:00:14]} Nc6 {[%emt 0:00:08]} 5. Bc4 {[%emt 0:00:22]} Nb6 {[%emt 0:00:12]} 6. Bb3 {[%emt 0:00:08]} d5 {[%emt 0:00:06]} 7. exd6 {[%emt 0:00:12]} Qxd6 {[%emt 0:00:09]} 8. O-O {[%emt 0:00:30]} Bf5 {[%emt 0:04:19]} 9. d4 $14 {[%emt 0:03:04]} cxd4 {[%emt 0:03:48]} 10. Nxd4 {[%emt 0:00:42]} Nxd4 {[%emt 0:03:13]} 11. cxd4 {[%emt 0:00:10]} g6 {[%emt 0:10:11]} 12. Bg5 {[%emt 0:08:15]} h6 {[%emt 0:15:11]} 13. Bh4 {[%emt 0:05:46]} Bg7 {[%emt 0:01:44]} 14. Re1 {[%emt 0:02:56]} g5 {[%emt 0:05:37]} 15. Bg3 {[%emt 0:06:05]} Qxd4 {[%emt 0:02:59]} 16. Qf3 {[%emt 0:13:11]} Qc5 {[%emt 0:05:58]} 17. Nc3 {[%emt 0:03:52]} O-O {[%emt 0:04:28]} 18. Rac1 {[%emt 0:03:57]} Qa5 {[%emt 0:05:15]} 19. Rxe7 {[%emt 0:03:47]} Bf6 {[%emt 0:00:00]} 20. Rxb7 {[%emt 0:04:01]} g4 {[%emt 0:20:32]} 21. Qe3 {[%emt 0:05:12]} Bg5 {[%emt 0:06:15]} 22. Bf4 {[%emt 0:01:02]} Rae8 {[%emt 0:02:36]} 23. Bxf7+ Rxf7 {[%emt 0:00:11]} 24. Qxe8+ {[%emt 0:02:21]} Rf8 {[%emt 0:00:07]} 25. Qe3 {[%emt 0:01:29]} Bxf4 {[%emt 0:00:53]} 26. Qxf4 {[%emt 0:00:12]} Bc8 {[%emt 0:00:44]} 27. Qe4 {[%emt 0:01:47]} Bxb7 {[%emt 0:00:48]} 28. Qxb7 {[%emt 0:00:16]} Qc5 {[%emt 0:01:43]} 29. Rf1 {[%emt 0:01:52]} Nc4 {[%emt 0:02:49]} 30. Qb3 {[%emt 0:04:30]} Rf7 {[%emt 0:02:16]} 31. Ne4 {[%emt 0:06:54]} Qd4 {[%emt 0:01:05]} 32. Rc1 {[%emt 0:02:05]} Nd2 {[%emt 0:01:42]} 33. Nxd2 {[%emt 0:00:55]} Qxf2+ {[%emt 0:00:33]} 34. Kh1 {[%emt 0:00:03]} Qxd2 {[%emt 0:00:08]} 35. Rf1 {[%emt 0:00:19]} Qd7 {[%emt 0:00:41]} 36. Qxf7+ {[%emt 0:00:07]} Qxf7 {[%emt 0:00:04]} 37. Rxf7 {[%emt 0:00:03]} Kxf7 {[%emt 0:00:01]} 38. Kg1 {[%emt 0:00:07]} Ke6 {[%emt 0:00:14]} 39. Kf2 {[%emt 0:00:05]} Kf5 {[%emt 0:00:19]} 40. Ke3 {[%emt 0:00:12]} Ke5 {[%emt 0:00:07]} 41. b4 {[%emt 0:00:33]} h5 {[%emt 0:00:52]} 42. g3 {[%emt 0:00:12]} Kd5 {[%emt 0:00:18]} 43. Kd3 {[%emt 0:00:07]} Ke5 {[%emt 0:00:14]} 44. a4 {[%emt 0:00:14]} Kd5 {[%emt 0:00:12]} 45. b5 {[%emt 0:00:17]} Kc5 {[%emt 0:00:18]} 46. Kc3 {[%emt 0:00:12]} a6 {[%emt 0:00:30]} 47. bxa6 {[%emt 0:00:17]} Kb6 {[%emt 0:00:05]} 48. Kd4 {[%emt 0:00:03]} 1-0

[Event "SixDays Budapest March IM C 2025"]
[Site "Budapest"]
[Date "2025.03.26"]
[Round "4.3"]
[White "Georgiadis, Anastasios"]
[Black "Szeberenyi, Adam"]
[Result "1-0"]
[Annotator "TA"]
[ECO "D35"]
[WhiteElo "2229"]
[BlackElo "2294"]
[PlyCount "75"]
[EventDate "2025.03.23"]
[EventCountry "HUN"]
[SourceTitle "playchess.com"]
[Source "ChessBase"]
[SourceQuality "1"]
[TimeControl "5400+30"]

{[%evp 18,75,23,18,27,27,27,18,33,26,32,30,32,20,34,38,41,19,45,36,306,276,293,309,307,246,246,237,287,275,275,246,291,303,338,340,362,371,366,372,371,368,379,367,450,449,474,435,2383,2383,2383,2383,2323,1395,2106,1808,4134,2329,1164,729]} 1. d4 {[%emt 0:04:24]} d5 {[%emt 0:00:04]} 2. c4 {[%emt 0:01:01]} e6 {[%emt 0:00:04]} 3. Nc3 {[%emt 0:00:20]} Nf6 {[%emt 0:00:05]} 4. cxd5 {[%emt 0:00:13]} exd5 {[%emt 0:00:04]} 5. Bg5 {[%emt 0:00:13]} c6 {[%emt 0:07:01]} 6. e3 {[%emt 0:00:09]} Bf5 {[%emt 0:02:45]} 7. Qf3 {[%emt 0:02:27]} Bg6 {[%emt 0:00:02]} 8. Bxf6 {[%emt 0:00:08]} Qxf6 {[%emt 0:00:03]} 9. Qxf6 {[%emt 0:00:08]} gxf6 {[%emt 0:00:03]} 10. Nge2 {[%emt 0:03:05]} Nd7 {[%emt 0:00:10] D35: Queen's Gambit Declined: Exchange Variation.} 11. Nf4 {[%emt 0:01:20]} Bd6 {[%emt 0:01:01]} 12. g3 {[%emt 0:01:10]} a5 {[%emt 0:00:13] The position is equal.} 13. Be2 $146 {[%emt 0:05:12]} ({Predecessor:} 13. h4 h5 14. Rc1 a4 15. a3 Ke7 {½-½ Mikrut,D (2312)-Plat,V (2476) POL-chT Ekstraliga 2023 (5.3)}) 13... a4 {[%emt 0:01:26]} 14. Rc1 {[%emt 0:09:21]} Nb6 {[%emt 0:03:29]} 15. a3 {[%emt 0:05:50]} Ke7 {[%emt 0:25:51]} 16. h4 {[%emt 0:00:54]} h5 {[%emt 0:02:50]} 17. f3 {[%emt 0:02:01]} Rhd8 {[%emt 0:04:21]} 18. Kf2 {[%emt 0:02:08]} Nc4 $2 {[%emt 0:10:43][%mdl 8192] [#] Loses the game.} ({Black should try} 18... f5 $14) 19. Nfxd5+ $1 {[%emt 0:01:16][%mdl 512]} cxd5 {[%emt 0:01:35]} (19... Kf8 20. Bxc4) 20. Nxd5+ {[%emt 0:00:06]} Kf8 {[%emt 0:00:28]} 21. Bxc4 {[%emt 0:00:08]} b5 {[%emt 0:00:09]} 22. Ba2 {[%emt 0:02:06]} (22. Bxb5 Rdb8 23. Be2 (23. Nc3 Ra5 $18) 23... Rxb2 $16) 22... Rab8 {[%emt 0:01:24]} 23. Nb4 {[%emt 0:02:10]} ({Weaker is} 23. Nxf6 b4 24. axb4 Rxb4 $14) 23... Rbc8 {[%emt 0:02:56]} 24. Rhd1 {[%emt 0:04:54][%cal Bh1d1,Bd1d2,Bd2d3][%mdl 32]} Bxb4 {[%emt 0:00:24]} 25. axb4 {[%emt 0:00:32]} Bc2 {[%emt 0:00:04]} 26. Rd2 {[%emt 0:10:00]} Bb3 {[%emt 0:00:11]} 27. Rxc8 {[%emt 0:02:28]} Rxc8 {[%emt 0:00:04]} 28. Bxb3 {[%emt 0:01:39]} axb3 $18 {[%emt 0:00:03][%mdl 4096] Endgame KR-KR. White is two pawns up.} 29. e4 {[%emt 0:01:03]} Rc4 {[%emt 0:01:26]} 30. Ke3 {[%emt 0:00:21]} Rxb4 {[%emt 0:00:06]} 31. Rd3 {[%emt 0:00:38] White is clearly winning.} Ke7 {[%emt 0:04:02]} 32. d5 {[%emt 0:04:54] [#]} Kd6 {[%emt 0:04:23]} (32... Rc4 $142 33. Rxb3 f5 34. Rxb5 fxe4 35. fxe4 f5 36. exf5 Rg4) 33. Rd4 {[%emt 0:01:40]} Ra4 {[%emt 0:00:04]} 34. Rxa4 {[%emt 0:00:33]} bxa4 {[%emt 0:00:04]} 35. Kd3 {[%emt 0:00:05] And now Kd2 would win.} ({But not} 35. Kd4 $2 a3 36. bxa3 b2 $19) 35... f5 {[%emt 0:02:56]} 36. exf5 {[%emt 0:00:15]} Kxd5 {[%emt 0:00:30]} 37. Kc3 {[%emt 0:01:07]} Ke5 {[%emt 0:02:06]} 38. Kb4 {[%emt 0:00:49] Weighted Error Value: White=0.24 (precise) /Black=0.83  Loses game:     	---       	Black=1      Mistake:       	---       	Black=1      Inaccurate:     	---       	Black=1      OK:         	White=11    	Black=6      Best:        	White=1     	---} 1-0

[Event "SixDays Budapest March IM C 2025"]
[Site "Budapest"]
[Date "2025.03.26"]
[Round "4.4"]
[White "Mou, Iris"]
[Black "Balla, Tamas-Kristof"]
[Result "0-1"]
[Annotator "TA"]
[ECO "B40"]
[WhiteElo "2209"]
[BlackElo "2320"]
[PlyCount "164"]
[EventDate "2025.03.23"]
[EventCountry "HUN"]
[SourceTitle "playchess.com"]
[Source "ChessBase"]
[SourceQuality "1"]
[TimeControl "5400+30"]

{[%evp 9,164,0,0,-2,17,18,24,6,35,31,46,43,52,51,52,31,39,0,-3,-10,-14,-7,35,-16,145,34,47,51,59,32,16,-58,0,-54,72,14,38,17,57,-116,-20,-29,-24,-114,-93,-94,-97,-159,-114,-121,-129,-135,-128,-139,-138,-138,-139,-138,-136,-137,-89,-89,-97,-131,-141,-141,-140,-170,-170,-170,-148,-173,-168,-180,-163,-166,-166,-168,-165,-145,-137,-180,-83,-450,-362,-334,-338,-431,-415,-439,-417,-431,-411,-619,-492,-789,-785,-744,-614,-1562,-1534,-2334,-2284,-1901,-1793,-1560,-1312,-1418,-1590,-1497,-1416,-1183,-1182,-879,-860,-5544,-5544,-4618,-4618,-29974,-29974,-29973,-29975,-29974,-29973,-29973,0,-29970,0,-29950,-2232,-29969,-29968,-29962,-29966,-29965,-29966,-29968,-29974,-29972,-29973,-29978,-29979,-29979,-29980,-29977,-29979,-29982,-29981,-29982,-29983,-29984,-29985,-29986,-29987,-29992,-29993]} 1. e4 {[%emt 0:03:09]} c5 {[%emt 0:04:43]} 2. Nf3 {[%emt 0:00:13]} e6 {[%emt 0:00:07]} 3. b3 {[%emt 0:00:12]} b6 {[%emt 0:00:11]} 4. d4 {[%emt 0:00:30]} cxd4 {[%emt 0:02:09]} 5. Nxd4 {[%emt 0:00:11]} Bb7 {[%emt 0:00:13]} 6. Nd2 {[%emt 0:00:13] B40: Sicilian: 2...e6, Unusual lines.} Nc6 {[%emt 0:06:00]} 7. Nxc6 {[%emt 0:03:21]} Bxc6 {[%emt 0:02:11]} 8. Bb2 {[%emt 0:00:11] White has an edge. Against Qf6} d5 {[%emt 0:01:33]} 9. e5 $146 {[%emt 0:16:03]} (9. Bd3 Nf6 10. exd5 Qxd5 11. Qe2 Qa5 12. O-O Be7 13. a4 Qd5 14. Nf3 O-O 15. Rfd1 {½-½ Idani,P (2605)-Nitish,B (2449) Aktobe Dvorkovich op 2024 (5)}) 9... Bc5 {[%emt 0:03:36]} 10. Bd3 {[%emt 0:05:07]} Ne7 {[%emt 0:01:16]} 11. Qg4 {[%emt 0:06:00][%cal Ob3b4] Black must now prevent b4!.} h5 {[%emt 0:09:59]} 12. Qg3 {[%emt 0:07:49]} g6 {[%emt 0:03:06]} 13. h4 {[%emt 0:06:36]} Nf5 {[%emt 0:04:01]} 14. Bxf5 {[%emt 0:02:57]} gxf5 {[%emt 0:07:31]} 15. Nf3 {[%emt 0:07:40]} Qe7 {[%emt 0:02:01]} 16. c3 {[%emt 0:03:37]} (16. O-O $14) 16... O-O-O $2 {[%emt 0:06:45]} (16... Qc7 $11) 17. Bc1 {[%emt 0:04:02]} ({White must play} 17. b4 $1 $16 {[%cal Rb4c5]}) 17... Rdg8 {[%emt 0:07:06]} 18. Bg5 {[%emt 0:01:31]} Qc7 {[%emt 0:00:23]} 19. Qf4 {[%emt 0:02:05]} Bb5 {[%emt 0:11:36]} 20. Qd2 {[%emt 0:11:35]} (20. a4 $11 Bd3 21. b4) 20... Ba3 {[%emt 0:06:01]} (20... d4 $1 $15 21. cxd4 (21. Nxd4 Qxe5+ 22. Kd1 Rd8 $15) 21... Ba3) 21. b4 {[%emt 0:03:52]} ({White should try} 21. Rb1 $11) 21... Rg6 {[%emt 0:03:51]} (21... d4 $15 22. Nxd4 Qxe5+ 23. Qe3 Qxe3+ 24. fxe3 Ba4 (24... Bb2 25. Nxb5 Bxa1 26. Kf2 $16)) 22. Rb1 $1 $16 {[%emt 0:01:31]} Bc4 {[%emt 0:01:57] Wards off Rb3} 23. Qc2 {[%emt 0:01:56]} b5 {[%emt 0:01:48] Prevents Qa4} (23... Kb8 {simplifies} 24. Rb3 Rxg5 25. hxg5 Bxb3 26. Qxb3 Bc1) 24. Qd2 $2 {[%emt 0:03:43]} (24. Rb3 $1 $14 Bxb3 25. Qxb3 Rxg5 26. hxg5) 24... Kd7 {[%emt 0:03:01]} ({Better is} 24... Kb7 $17 25. Qe3 a5) 25. Qe3 $1 $11 {[%emt 0:02:26]} a5 {[%emt 0:03:40] Active counter play!} 26. Nd2 {[%emt 0:04:03]} (26. Nd4 $11 {keeps the balance.} axb4 27. cxb4) 26... Ra8 $1 $17 {[%emt 0:04:12] Really sharp!} (26... Bxa2 $2 27. Ra1 $18) 27. Nxc4 {[%emt 0:02:28]} Qxc4 {[%emt 0:02:49]} 28. bxa5 {[%csl Oa2,Oa5,Oc3] White has weak pawns} (28. Qb6 $142 Qxc3+ (28... axb4 $2 29. Qb7+ Qc7 30. Qxa8 $18) 29. Kf1) 28... Bc5 {[%emt 0:01:07]} 29. Qe2 {[%emt 0:00:56]} Rxa5 {[%emt 0:00:28]} (29... Qxc3+ 30. Kf1 Rxa5 31. Bd2 $18) 30. Qxc4 {[%emt 0:00:21]} dxc4 {[%emt 0:00:14]} 31. Rb2 {[%emt 0:00:22]} Rg8 {[%emt 0:00:43]} 32. Ke2 {[%emt 0:00:38]} Rga8 {[%emt 0:00:37]} 33. Rd1+ {[%emt 0:00:05]} Kc6 {[%emt 0:00:07]} 34. Rdd2 {[%emt 0:00:06]} Ra3 {[%emt 0:00:24]} (34... R5a7 $142 $1 {[%cal Ob5b4]} 35. Rbc2 Rd7) 35. Rbc2 {[%emt 0:00:36]} R8a7 {[%emt 0:01:41]} 36. Kd1 {[%emt 0:01:35]} Rd7 {[%emt 0:00:27]} 37. Rxd7 {[%emt 0:00:14]} Kxd7 {[%emt 0:00:01][%mdl 4096] Endgame KRB-KRB} 38. Bc1 {[%emt 0:00:19]} Ra8 {[%emt 0:00:15]} 39. Bg5 {[%emt 0:00:18]} Kc6 {[%emt 0:00:22]} 40. f3 {[%emt 0:00:22]} Kd5 {[%emt 0:00:36]} 41. Bf6 {[%emt 0:00:45]} Be3 {[%emt 0:00:50]} 42. Rb2 {[%emt 0:00:40]} Kc6 {[%emt 0:00:32]} 43. Ke2 {[%emt 0:00:32]} Bf4 {[%emt 0:00:35]} 44. Kf2 {[%emt 0:00:29]} Ra3 {[%emt 0:00:48]} 45. Rc2 {[%emt 0:00:14] [#]} Kd5 {[%emt 0:00:17]} (45... b4 $1 $19 {[%cal Rb4b3] has better winning chances. ...b3 would now be deadly.} 46. cxb4 Be3+ (46... Kb5 $2 47. Bg7 $17) 47. Kf1 Kb5) 46. Bg7 $2 {[%emt 0:01:02][%mdl 8192] [#]} (46. g3 $17 {was the crucial defense.} Bh6 (46... Bxe5 $2 47. Rd2+ Kc6 48. Bxe5 $18) 47. Be7) 46... b4 $1 $19 {[%emt 0:00:45]} (46... Bxe5 $2 47. Rd2+ $18) 47. cxb4 {[%emt 0:00:21]} c3 {[%emt 0:00:37][%cal Od5c4]} (47... Bxe5 $2 48. Rd2+ Rd3 49. Rxd3+ cxd3 50. Bxe5 Kxe5 51. Ke3 f4+ 52. Kxd3 $18) 48. Ke2 {[%emt 0:00:54]} Kc4 {[%emt 0:00:13]} (48... Bxe5 49. Bxe5 Kxe5 50. Kd3 $17) 49. Bf8 {[%emt 0:00:16]} Bxe5 {[%emt 0:00:30]} 50. Be7 {[%emt 0:00:13]} Bd4 {[%emt 0:00:38]} 51. f4 {[%emt 0:00:58]} (51. Kd1 $142) 51... Ra8 {[%emt 0:00:13]} 52. Bc5 {[%emt 0:00:33]} (52. Kd1 $142) 52... Bxc5 {[%emt 0:00:38]} 53. bxc5 {[%emt 0:00:04] KR-KR} Rc8 {[%emt 0:00:05]} 54. Ke3 {[%emt 0:00:27]} Rxc5 {[%emt 0:00:11]} (54... Kxc5 $2 {loses.} 55. Rxc3+ Kb6 56. Rxc8 $18) 55. g3 {[%emt 0:00:18]} Ra5 {[%emt 0:00:15]} 56. Re2 {[%emt 0:00:24]} Ra3 {[%emt 0:00:15]} 57. Rc2 {[%emt 0:00:10]} f6 {[%emt 0:00:46]} 58. Re2 {[%emt 0:00:51]} e5 {[%emt 0:01:11]} 59. fxe5 {[%emt 0:00:15]} fxe5 {[%emt 0:00:01]} 60. Rf2 {[%emt 0:00:11]} c2+ {[%emt 0:01:39]} 61. Kd2 {[%emt 0:00:03]} Rxg3 {[%emt 0:00:21]} 62. Rxf5 {[%emt 0:00:18]} Rg2+ {[%emt 0:00:05]} 63. Kc1 {[%emt 0:00:04]} e4 {[%emt 0:00:42] ( -> ...e3)} 64. Rf8 {[%emt 0:02:50]} e3 {[%emt 0:00:36]} 65. Rc8+ {[%emt 0:00:06]} Kd3 {[%emt 0:00:13]} 66. Rd8+ {[%emt 0:00:03]} Ke2 {[%emt 0:01:00]} 67. Re8 {[%emt 0:00:47]} Kd3 {[%emt 0:00:36]} 68. Rd8+ {[%emt 0:00:04]} Ke2 {[%emt 0:00:20]} 69. Re8 $1 {[%emt 0:00:04]} Rg4 {[%emt 0:00:40]} (69... Kf3 $142 70. Rf8+ Kg3 (70... Ke4 $2 71. Re8+ Kf4 72. Rf8+ Kg3 73. Rf1 $19) 71. Rf1 Kh2 (71... Kxh4 $2 72. Re1 $19) 72. Rf8 e2 73. Re8 Rg1+ 74. Kxc2 e1=Q (74... e1=B 75. Re5 $15) (74... e1=R $2 75. Rh8 $19) 75. Rxe1 Rxe1 76. Kd2 Ra1 77. Kc3 Rxa2 (77... Rc1+ $2 78. Kb4 $19) 78. Kb4 Kg3 79. Kc4 Rh2 (79... Kxh4 {is a self mate.} 80. Kd3 Kg4 81. Ke4 Rg2 82. Kd5 h4 83. Ke5 h3 84. Ke6 Rd2 85. Kf6 h2 86. Kf7 h1=Q 87. Kg7 Qf3 88. Kh6 Rd7 89. Kg6 Qc6#) 80. Kd5 Rxh4 (80... Kxh4 81. Ke4 Kg3 82. Kd4 Rd2+ 83. Ke4 h4 84. Ke3 Rd8 85. Ke4 h3 86. Kf5 h2 87. Kf6 h1=Q 88. Ke7 Rd3 89. Kf7 Qc6 90. Kf8 Rd7 91. Kg8 Qc8#) 81. Kc5 Rg4 82. Kc6 h4 83. Kd7 h3 84. Kd6 h2 85. Ke5 h1=Q (85... h1=R 86. Ke6 Rd1 87. Kf6 Rd6+ 88. Ke7 Rb6 89. Kf7 Ra4 90. Kf8 Rb7 91. Kg8 Ra8#) 86. Ke6 Qc6+ 87. Ke7 Rg7+ 88. Kf8 Qf6+ 89. Ke8 Qe7#) 70. Kxc2 {[%emt 0:00:45]} Rc4+ {[%emt 0:00:04] Black mates.} 71. Kb3 {[%emt 0:00:04]} Rxh4 {[%emt 0:00:27]} 72. a4 {[%emt 0:00:07]} Rf4 {[%emt 0:00:10]} 73. a5 {[%emt 0:00:18]} Kf2 {[%emt 0:00:32]} 74. a6 {[%emt 0:00:26]} Rf7 {[%emt 0:00:09]} 75. Re5 {[%emt 0:02:07]} e2 {[%emt 0:00:30]} 76. a7 {[%emt 0:00:10]} Rxa7 {[%emt 0:00:21]} (76... e1=B 77. a8=Q (77. a8=B h4 $11) 77... Rf3+ 78. Kc2 Rc3+ 79. Kb2 $18) 77. Rf5+ {[%emt 0:00:09]} Ke1 {[%emt 0:00:34]} 78. Rxh5 {[%emt 0:00:08]} Rf7 {[%emt 0:00:55]} 79. Kc2 {[%emt 0:02:05]} Kf1 {[%emt 0:00:16]} 80. Rh1+ {[%emt 0:00:32]} Kg2 {[%emt 0:00:06]} 81. Re1 {[%emt 0:00:16]} Kf2 {[%emt 0:00:05]} 82. Kd2 {[%emt 0:00:04]} Rd7+ {[%emt 0:00:06] Weighted Error Value: White=0.53/Black=0.28 (precise)   Loses game:     	White=1     	---        Mistake:       	White=9     	Black=6      Inaccurate:     	White=5     	Black=3      OK:         	White=15    	Black=13     Best:        	White=3     	---        Strong:       	White=3     	Black=2} 0-1